Cogmind - Beta 15 @@@ ROGUE MODE // 2025.07.17 @ 18:45:33 Player: Unmode Result: Destroyed by H-88 Terminator with Heavy Machine Gun Performance ------------- Evolutions (9) 4500 Regions Visited (22) 4400 Robots Destroyed (137) 685 Value Destroyed (3279) 3279 Prototype IDs (48) 960 Alien Tech Used (7) 1400 Bonus (4051) 4051 TOTAL SCORE: 19275 Bonus ------- Follower Combat Kills 251 Met Zhirov 300 Met Warlord at Base 500 MAIN.C Attacked Warlord 500 Met Warlord at Research 2000 Scanned by Researcher 500 Cogmind --------- Core Integrity 0/1600 Matter 24/300 Energy 96/100 System Corruption 0% Temperature Cool (0) Movement Core (50) Location -1/Access Parts ------- > --- POWER (2) -------- (None) > --- PROPULSION (8) --- (None) > --- UTILITY (13) ----- (None) > --- WEAPON (2) ------- (None) > --- INVENTORY (5) ---- Medium Treads Advanced Weight Redist. System Layered Medium Armor Plating Layered Medium Armor Plating Peak State ------------ > --- POWER ------------ Backup Power III Micro Antimatter Reactor > --- PROPULSION ------- Field Propulsion Array Q-thruster Cooled Impulse Thruster Impulse Thruster Array Cooled Q-thruster > --- UTILITY ---------- Large Storage Unit Advanced Quantum Shading Machine Experimental Signal Interpreter Improved Transmission Jammer Advanced ECM Suite Improved Cloaking Device Experimental Utility Shielding Improved Hacking Suite Improved Hacking Suite Advanced Hacking Suite Advanced System Shield Ghost Barrier > --- WEAPON ----------- Enhanced Nova Cannon Particle Cleaver > --- INVENTORY -------- Backup Power III Micro Antimatter Reactor Q-thruster Q-thruster Energy Well Advanced Gravity Neutralizer Machine Analyzer Experimental Optical Array Advanced Sensor Array Advanced Terrain Scan Processor Hardened Medium Armor Plating Phase Redirector Subatomic Replicator Ragnarok Missile Launcher Kinetic Spear [Rating: 169] Favorites ----------- Power Light Nuclear Core Engine Ion Engine Power Core Light Nuclear Core Reactor Micro Antimatter Reactor Propulsion Xenon Bombardment Thruster Treads Light Treads Wheel Compact Wheel Flight Unit Xenon Bombardment Thruster Utility Improved Hacking Suite Device Long-range Sensor Array Storage High-capacity Storage Unit Processor Improved Signal Interpreter Hackware Improved Hacking Suite Protection Improved Medium Armor Plating Artifact Phase Armor Weapon Heavy Assault Rifle Energy Gun EM Pulse Gun Energy Cannon Matter Neutralizer Ballistic Gun Heavy Assault Rifle Ballistic Cannon Flak Cannon Launcher Mini Grenade Launcher Special Weapon Remote Datajack Impact Weapon Makeshift Hammer Slashing Weapon Scythe Piercing Weapon Kinetic Spear Special Melee Weapon Improved Datajack Build | -11 -10 -9 -9 -8 -7 -6 -5 -5 -5 -5 -4 -4 -4 -4 -4 -3 -3 -3 -2 -2 -2 -1 ------- Run | Yrd Mat Mat Min Mat Fac Fac Fac Upp Upp War Pro Fac Upp Upp Zhi Pro Res Qua Res Tes Frg Acc Slots Evolved 18 | . . 2 . 2 2 2 2 . . . . 2 . . . . 2 . 2 . . 2 Power 1 | . . . . . 1 . . . . . . . . . . . . . . . . . Propulsion 6 | . . 1 . 1 1 . 1 . . . . . . . . . 1 . . . . 1 Utility 11 | . . 1 . 1 . 2 1 . . . . 2 . . . . 1 . 2 . . 1 Weapon . | . . . . . . . . . . . . . . . . . . . . . . . Parts Attached 179 | 6 10 21 6 17 14 6 14 5 . 8 2 14 3 2 5 . 9 5 15 1 2 14 Power 18 | 1 . 2 . 1 1 . 2 2 . 1 . 2 1 . 1 . 1 1 . . . 2 Engine 6 | 1 . 1 . . . . 2 . . . . 1 . . . . . . . . . 1 Core 6 | . . 1 . 1 1 . . 2 . 1 . . . . . . . . . . . . Reactor 6 | . . . . . . . . . . . . 1 1 . 1 . 1 1 . . . 1 Propulsion 50 | 2 1 8 4 6 5 2 3 1 . 3 . 1 . . . . 2 2 3 . . 7 Treads 13 | 1 . 4 3 5 . . . . . . . . . . . . . . . . . . Leg . | . . . . . . . . . . . . . . . . . . . . . . . Wheel 7 | 1 1 3 1 1 . . . . . . . . . . . . . . . . . . Hover . | . . . . . . . . . . . . . . . . . . . . . . . Flight 30 | . . 1 . . 5 2 3 1 . 3 . 1 . . . . 2 2 3 . . 7 Utility 66 | 1 4 4 2 3 7 3 7 . . 2 1 9 1 . 3 . 4 2 6 1 1 5 Device 16 | . . . . . 1 . 4 . . . 1 6 . . . . 2 . 2 . . . Storage 10 | 1 2 . . . 1 . 1 . . . . . . . 1 . 1 . 2 . . 1 Processor 13 | . . 1 . . 1 1 1 . . 1 . . . . . . 1 1 2 1 1 2 Hackware 12 | . . . . . 3 2 1 . . . . 2 1 . 1 . . . . . . 2 Protection 14 | . 2 3 2 3 1 . . . . 1 . 1 . . 1 . . . . . . . Artifact 1 | . . . . . . . . . . . . . . . . . . 1 . . . . Weapon 45 | 2 5 7 . 7 1 1 2 2 . 2 1 2 1 2 1 . 2 . 6 . 1 . Energy Gun 1 | . 1 . . . . . . . . . . . . . . . . . . . . . Energy Cannon 5 | . . . . . . . 1 . . 1 . . . 1 . . 1 . 1 . . . Ballistic Gun 17 | 2 4 6 . 5 . . . . . . . . . . . . . . . . . . Ballistic Cannon 2 | . . . . 1 . . . . . . . . 1 . . . . . . . . . Launcher 5 | . . 1 . . 1 . . 1 . . . . . . 1 . . . 1 . . . Special Weapon 3 | . . . . . . . . 1 . . . 2 . . . . . . . . . . Impact Weapon 1 | . . . . . . . . . . . 1 . . . . . . . . . . . Slashing Weapon 6 | . . . . 1 . . 1 . . . . . . 1 . . 1 . 2 . . . Piercing Weapon 3 | . . . . . . . . . . 1 . . . . . . . . 2 . . . Special Melee Weapon 2 | . . . . . . 1 . . . . . . . . . . . . . . 1 . Unidentified Prototypes 28 | . . 2 . 1 . 1 . . . 3 . 2 1 . 4 1 . 5 8 . . . Parts Lost 34 | . 2 4 1 . . 5 2 . . 1 . 1 . . . . . . . 5 . 13 Power 9 | . . 1 . . . 2 1 . . . . 1 . . . . . . . 2 . 2 Propulsion 14 | . . 1 1 . . 2 . . . 1 . . . . . . . . . 2 . 7 Utility 7 | . 1 2 . . . 1 1 . . . . . . . . . . . . . . 2 Weapon 4 | . 1 . . . . . . . . . . . . . . . . . . 1 . 2 Highest Loss Streak 7 | . 2 1 1 . . 3 1 . . 1 . 1 . . . . . . . 5 . 7 To Critical Strikes . | . . . . . . . . . . . . . . . . . . . . . . . Average Backups 13 | 4 17 19 20 19 10 7 7 8 9 9 9 9 9 9 9 10 13 14 14 12 4 11 Power . | . . . 1 1 . . . . . . . . . . . . . 1 2 1 . . Propulsion 2 | 2 3 2 4 3 3 1 1 2 1 1 2 1 1 1 1 1 . 1 2 1 . 1 Utility 6 | . 5 10 8 8 4 2 3 3 4 5 5 5 6 6 6 7 9 8 7 8 4 9 Weapon 3 | . 7 6 4 4 . . 2 2 3 2 2 2 2 1 1 1 2 2 2 . . . Tool/Special . | . . . . . . . . . . . . . . . . . . . . . . . Unused Backups 55 | . 8 5 1 4 . 1 1 . 2 2 . 3 . . 1 . 1 3 5 6 . 12 Power 4 | . 1 . . . . . . . . . . . . . . . . . 2 1 . . Propulsion 9 | . 3 . . . . 1 . . 1 . . . . . . . . . . 2 . 2 Utility 28 | . 1 3 1 1 . . . . 1 1 . 3 . . 1 . 1 3 1 2 . 9 Weapon 13 | . 3 2 . 3 . . 1 . . 1 . . . . . . . . 2 . . 1 Tool/Special 1 | . . . . . . . . . . . . . . . . . . . . 1 . . Average Slot Usage (%) 91 | . 92 97 99 98 94 94 95 99 100 99 85 96 88 89 88 89 90 86 90 75 14 42 Engine 3 | . 14 9 . . . . 8 . . . . 4 . . . . . 1 4 3 . 2 Core 3 | . . . 11 9 13 9 . 10 11 10 5 . . . . . . . . . . . Reactor 1 | . . . . . . . . . . . . 4 5 5 5 5 4 4 4 3 . 1 Treads 7 | . 14 15 22 26 5 . . . . . . . . . . . . . . . . . Wheel 4 | . 14 16 10 9 1 . . . . . . . . . . . . . . . . . Flight 17 | . . . . . 27 32 33 35 35 35 35 28 26 26 26 26 28 23 21 17 4 18 Device 5 | . . . . . 4 6 6 9 10 10 5 9 9 10 5 8 10 12 12 13 2 3 Storage 7 | . 14 11 11 9 7 6 5 5 5 5 5 5 5 5 5 5 4 4 4 3 . 3 Processor 5 | . . 4 11 9 4 9 5 5 5 5 5 5 5 5 5 5 4 4 7 3 2 6 Hackware 12 | . . . . . 11 7 15 17 17 17 17 25 26 26 26 26 23 23 21 17 . 3 Protection 6 | . 7 16 11 16 . 5 4 1 . . 5 . . . 3 1 2 . 4 3 . . Energy Cannon 1 | . . . . . . . 1 4 5 4 . . . 4 5 5 4 4 3 3 . . Ballistic Gun 7 | . 27 22 22 15 . . . . . . . . . . . . . . . . . . Slashing Weapon 2 | . . . . 1 7 6 4 4 4 1 . . . 1 5 4 4 4 3 . . . Peak Build Rating 169 | 7 12 20 20 38 39 45 61 72 72 76 61 103 107 102 111 105 129 145 169 167 31 101 Average Rating 66 | 5 9 15 18 34 35 41 55 67 69 71 58 90 100 101 103 104 124 137 155 135 25 72 On Entrance 64 | . 7 12 18 19 34 36 41 60 72 69 55 61 99 98 102 102 105 127 144 167 19 31 Naked Turns 11 | . . . . . . . . . . . . . . . . . . . . . . 11 Heaviest Build 88 | 13 88 66 58 68 53 22 32 42 36 35 22 38 48 38 49 43 47 53 54 53 5 39 Greatest Support 84 | 16 16 40 40 84 25 26 34 36 36 39 36 44 41 40 40 40 50 54 70 53 7 60 Greatest Overweight (x) 6 | . 5 4 3 5 4 . . 1 . . . . 1 . 1 1 . . 1 . . 6 Average Overweight (x) . | . 2 1 2 4 . . . . . . . . . . . . . . . . . . Largest Inventory Capacity 20 | 8 20 20 20 20 20 8 10 10 10 10 10 10 10 10 10 10 15 15 15 15 5 15 Average Capacity 14 | 7 19 20 20 20 11 8 8 10 10 10 10 10 10 10 10 10 14 15 15 13 5 12 Most Carried 20 | 8 20 20 20 20 20 8 10 10 10 10 10 10 10 10 10 10 15 15 15 15 5 15 Average Carried 13 | 5 17 19 19 19 10 7 8 9 9 9 9 9 9 9 9 10 13 14 14 12 4 11 Final Capacity 20 | 8 20 20 20 20 8 8 10 10 10 10 10 10 10 10 10 10 15 15 15 5 5 5 Final Carried 20 | 8 20 20 20 20 8 7 10 10 10 10 10 10 10 10 10 10 15 15 15 5 4 4 Class Distribution -------------------- 32% | Mutant 19% | Wizard-Sprinter 12% | Hacker-Sprinter 8% | Wizard-Mutant 6% | Hacker-Mutant 5% | Sprinter 5% | Scavenger-Mutant 5% | Wizard-Ninja Dominant Class ---------------- Mutant | -10/Materials Mutant | -9/Materials Scavenger-Mutant | -9/Mines Mutant | -8/Materials Sprinter | -7/Factory Scout | -6/Factory Hacker-Sprinter | -5/Factory Hacker-Sprinter | -5/Upper Caves Hacker-Sprinter | -5/Upper Caves Hacker-Sprinter | -5/Warlord Hacker-Sprinter | -4/Proximity Caves Wizard-Sprinter | -4/Factory Wizard-Mutant | -4/Upper Caves Wizard-Mutant | -4/Upper Caves Wizard-Sprinter | -4/Zhirov Wizard-Sprinter | -3/Proximity Caves Wizard-Mutant | -3/Research Wizard-Sprinter | -3/Quarantine Wizard-Ninja | -2/Research Wizard-Sprinter | -2/Testing Sprinter | -2/Protoforge Sprinter | -1/Access Resources | -11 -10 -9 -9 -8 -7 -6 -5 -5 -5 -5 -4 -4 -4 -4 -4 -3 -3 -3 -2 -2 -2 -1 ----------- Run | Yrd Mat Mat Min Mat Fac Fac Fac Upp Upp War Pro Fac Upp Upp Zhi Pro Res Qua Res Tes Frg Acc Matter Collected 4832 | 295 345 791 201 858 89 91 250 160 75 42 143 144 251 81 60 110 46 129 525 10 41 95 Remotely . | . . . . . . . . . . . . . . . . . . . . . . . Salvage Created 5588 | 131 536 985 115 1016 89 110 358 193 53 . . 108 32 25 66 171 57 129 714 564 41 95 Parts 297 | 11 34 71 9 62 1 1 11 8 5 . . 4 . . 2 1 7 10 35 20 1 4 Haulers Intercepted 19 | . . 3 . 6 . 1 1 . . . . 1 . . . . . . 5 1 . 1 Recyclers Shooed 5 | . 1 4 . . . . . . . . . . . . . . . . . . . . Parts Field Recycled . | . . . . . . . . . . . . . . . . . . . . . . . Retrieved Matter . | . . . . . . . . . . . . . . . . . . . . . . . Parts Self-Destructed 11 | . . . . . . . . 4 5 . . . 2 . . . . . . . . . Prevented 1 | . . . . . . . . . . . . . 1 . . . . . . . . . Kills | -11 -10 -9 -9 -8 -7 -6 -5 -5 -5 -5 -4 -4 -4 -4 -4 -3 -3 -3 -2 -2 -2 -1 ------- Run | Yrd Mat Mat Min Mat Fac Fac Fac Upp Upp War Pro Fac Upp Upp Zhi Pro Res Qua Res Tes Frg Acc Combat Hostiles Destroyed 70 | . 12 21 5 17 . . . 5 4 . . . . . . . . . . 6 . . Guns 51 | . 12 20 5 14 . . . . . . . . . . . . . . . . . . Cannons 4 | . . . . 3 . . . . 1 . . . . . . . . . . . . . AOE 15 | . . 1 . . . . . 5 3 . . . . . . . . . . 6 . . Classes Destroyed 16 | 3 4 4 . . . . . . . . . . . 1 . . . . 1 3 . . Worker 16 | 2 . 2 . 1 . . 2 . . . . . . . . . . 7 . 1 1 . Builder 5 | . . 1 . 1 . . . . . . . . . . . . . . . 3 . . Tunneler 3 | 1 . . . 1 . . . . . . . . . . . . 1 . . . . . Hauler 19 | . . 3 . 6 . 1 1 . . . . 1 . . . . . . 5 1 . 1 Recycler 9 | 1 1 2 . . 1 . 1 . . . . . . . . . . . 1 2 . . Minesweeper 1 | . . . . . . . . . . . . . . 1 . . . . . . . . Mechanic 2 | . . 1 . . . . . . . . . 1 . . . . . . . . . . Operator 6 | . 2 1 . . . . 2 . . . . . . . . . . . . . 1 . Watcher 5 | . 1 1 . 1 . . 1 . . . . . . . . . 1 . . . . . Swarmer 27 | . 3 8 3 4 . . . 5 4 . . . . . . . . . . . . . Grunt 27 | . 9 9 2 7 . . . . . . . . . . . . . . . . . . Researcher 1 | . . . . . . . . . . . . . . . . . . . . 1 . . Sentry 10 | . . 4 . 6 . . . . . . . . . . . . . . . . . . Hunter 4 | . . . . . . . . . . . . . . . . . . . . 4 . . Programmer 2 | . . . . . . . . . . . . . . . . . . . . 2 . . Decomposer 2 | . . . . . . . . . . . . . 2 . . . . . . . . . Samaritan 2 | . . . . . . . . . . . . . . . . . . . 2 . . . Best Kill Streak 13 | 2 4 7 3 5 1 1 2 5 4 . . 1 . 1 . . 1 2 2 13 1 1 Combat Bots Only 6 | . 4 5 3 5 . . . 5 4 . . . . . . . . . . 6 . . Max Kills in Single Turn 5 | 1 1 2 1 2 1 1 1 5 3 . . 1 1 1 . . 1 1 1 5 1 1 Gunslinging 1 | . . 1 . 1 . . . . . . . . . . . . . . . . . . Exploded 5 | . . 1 . . . . . 5 3 . . . . . . . . . . 3 . . Melee . | . . . . . . . . . . . . . . . . . . . . . . . Uniques/NPCs Destroyed . | . . . . . . . . . . . . . . . . . . . . . . . Combat | -11 -10 -9 -9 -8 -7 -6 -5 -5 -5 -5 -4 -4 -4 -4 -4 -3 -3 -3 -2 -2 -2 -1 -------- Run | Yrd Mat Mat Min Mat Fac Fac Fac Upp Upp War Pro Fac Upp Upp Zhi Pro Res Qua Res Tes Frg Acc Hostile Shots Fired 779 | . 75 101 39 92 3 47 18 12 4 28 . 6 . . . 6 2 1 10 139 21 175 Missed 300 | . 21 23 7 19 3 26 6 7 2 13 . 4 . . . 1 2 1 8 62 16 79 Hits 479 | . 54 78 32 73 . 21 12 5 2 15 . 2 . . . 5 . . 2 77 5 96 Melee 20 | . . . . . . . . . . 2 . . . . . . . . . . . 18 Projectile 459 | . 54 78 32 73 . 21 12 5 2 13 . 2 . . . 5 . . 2 77 5 78 AOE 2 | . . . . . . . . . . . . . . . . . . . . . . 2 Critical Strikes 21 | . 2 1 . 2 . 2 1 . . 1 . 1 . . . . . . . 2 . 9 Actively Blocked 1 | . . . . . . . . . . 1 . . . . . . . . . . . . Part Disruptions 1 | . . . . . . . . . . . . . . . . . . . . 1 . . Damage Taken 8700 | 4 665 883 297 959 . 583 247 118 31 264 . 94 . . . 169 61 . 64 1672 87 2502 Core 2978 | 4 111 114 60 57 . 137 45 . . 37 . 27 . . . 29 . . . 657 87 1613 Absorbed by Shields . | . . . . . . . . . . . . . . . . . . . . . . . Redirected to Shielding 153 | . . . . . . . . . . 36 . . . . . . . . 41 76 . . Ignored by Resistances 20 | . . . . . . . 20 . . . . . . . . . . . . . . . Regen/Repaired (Parts) 305 | . . . . . . . 173 . . 9 . 48 . . . . 25 41 9 . . . Core Remaining (%) 80 | 98 54 . 56 89 100 83 . . . . 91 . . . . 95 . 93 . . 48 . Volleys Fired 346 | 10 58 79 13 81 . . 2 44 10 2 . . 3 . . 24 2 . 7 11 . . Largest 2 | 2 2 2 2 2 . . 1 1 1 1 . . 1 . . 1 1 . 1 1 . . Hottest 120 | 40 43 46 46 60 . . 90 90 90 90 . . 47 . . 105 105 . 120 120 . . Shots Fired 572 | 20 109 148 26 162 . 2 2 44 10 2 . . 3 . . 24 2 . 7 11 . . Gun 446 | 20 109 144 26 147 . . . . . . . . . . . . . . . . . . Cannon 110 | . . . . 15 . . 1 43 9 2 . . 3 . . 24 2 . 7 4 . . Launcher 16 | . . 4 . . . 2 1 1 1 . . . . . . . . . . 7 . . Special . | . . . . . . . . . . . . . . . . . . . . . . . Kinetic 457 | 20 102 144 26 162 . . . . . . . . 3 . . . . . . . . . Thermal 92 | . . . . . . . 1 43 9 2 . . . . . 24 2 . 7 4 . . Explosive 16 | . . 4 . . . 2 1 1 1 . . . . . . . . . . 7 . . Electromagnetic 7 | . 7 . . . . . . . . . . . . . . . . . . . . . Robot Hit Streak 27 | 8 9 11 4 27 . . . . 1 . . . . . . . . . . 4 . . Robot Miss Streak 8 | 3 8 7 7 5 . . . . 2 . . . . . . . . . . 4 . . Penetration Max . | . . . . . . . . . . . . . . . . . . . . . . . Secondary Targets 8 | . 2 3 1 2 . . . . . . . . . . . . . . . . . . Max Gunslinging Chain 1 | . 1 1 1 1 . . . . . . . . . . . . . . . . . . Shots Hit Robots 428 | 14 63 101 18 121 1 5 13 4 1 . . 6 2 7 2 2 5 10 23 21 2 7 Core Hits 232 | 7 34 54 8 57 1 2 6 5 7 . . 1 . 1 1 2 1 4 9 29 1 2 Critical Kills 2 | . 1 1 . . . . . . . . . . . . . . . . . . . . Critical Parts Destroyed 6 | 1 . 1 . 1 . . . . . . . 2 1 . . . . . . . . . Critical Strikes 15 | 1 1 2 . 2 . . 1 . . . . 2 1 1 . . . . 4 . . . Destroy 5 | 1 1 2 . 1 . . . . . . . . . . . . . . . . . . Smash 3 | . . . . . . . . . . . . 2 1 . . . . . . . . . Sever 6 | . . . . 1 . . 1 . . . . . . 1 . . . . 3 . . . Impale 1 | . . . . . . . . . . . . . . . . . . . 1 . . . Melee Attacks 390 | . . . . 9 9 39 41 36 10 3 5 56 10 9 2 17 24 23 48 26 8 15 Impact 71 | . . . . . . . . . . . 5 56 10 . . . . . . . . . Slashing 267 | . . . . 9 9 39 41 36 10 1 . . . 9 2 17 24 23 44 3 . . Piercing 49 | . . . . . . . . . . 2 . . . . . . . . 4 23 6 14 Sneak Attacks 38 | . . . . 1 1 1 6 . . . . 2 2 1 . . 2 8 9 1 1 3 Combat Hostiles . | . . . . . . . . . . . . . . . . . . . . . . . Follow-up Attacks . | . . . . . . . . . . . . . . . . . . . . . . . Damage Inflicted 14838 | 147 685 1684 250 2127 67 216 732 591 262 . . 400 151 306 154 134 351 700 1508 3807 156 410 Guns 4298 | 138 685 1592 250 1633 . . . . . . . . . . . . . . . . . . Cannons 450 | . . . . 369 . . . . 36 . . . . . . . . . . 45 . . Explosions 3596 | . . 92 . . . . . 378 226 . . . . . . . . . . 2900 . . Melee 6485 | . . . . 125 67 216 732 213 . . . 400 151 306 154 134 351 700 1508 862 156 410 Ramming 9 | 9 . . . . . . . . . . . . . . . . . . . . . . Kinetic 4667 | 138 685 1592 250 2002 . . . . . . . . . . . . . . . . . . Thermal 81 | . . . . . . . . . 36 . . . . . . . . . . 45 . . Explosive 3596 | . . 92 . . . . . 378 226 . . . . . . . . . . 2900 . . Electromagnetic . | . . . . . . . . . . . . . . . . . . . . . . . Impact 551 | . . . . . . . . . . . . 400 151 . . . . . . . . . Slashing 4278 | . . . . 125 67 216 732 213 . . . . . 306 154 134 351 700 1280 . . . Piercing 1656 | . . . . . . . . . . . . . . . . . . . 228 862 156 410 Highest Corruption 15 | . . 3 3 1 . 15 . . . . . . . . . . . . . 5 5 . Average Corruption 3 | . . 3 3 1 . 14 . . . . . . . . . . . . . 3 5 . Corruption Purged . | . . . . . . . . . . . . . . . . . . . . . . . Corruption Blocked . | . . . . . . . . . . . . . . . . . . . . . . . Effects 29 | . . 1 12 5 . 7 . . . . . . . . . . . . . . 4 . Message Errors 9 | . . . 3 2 . 1 . . . . . . . . . . . . . . 3 . Matter Fused 9 | . . . 5 1 . 2 . . . . . . . . . . . . . . 1 . Heat Flow Errors 3 | . . 1 1 1 . . . . . . . . . . . . . . . . . . Energy Discharges 1 | . . . . . . 1 . . . . . . . . . . . . . . . . Parts Fused 1 | . . . . 1 . . . . . . . . . . . . . . . . . . Data Loss (minor) 2 | . . . 1 . . 1 . . . . . . . . . . . . . . . . Data Loss (major) 1 | . . . 1 . . . . . . . . . . . . . . . . . . . Misfires 2 | . . . . . . 2 . . . . . . . . . . . . . . . . Alerts 1 | . . . 1 . . . . . . . . . . . . . . . . . . . Overload Shots . | . . . . . . . . . . . . . . . . . . . . . . . Overflow Damage 1296 | . . . . . . . 128 86 19 . . 136 144 57 76 . 131 232 37 160 58 32 Projectiles . | . . . . . . . . . . . . . . . . . . . . . . . Explosions 160 | . . . . . . . . 18 19 . . . . . . . . . . 91 . 32 Melee 1136 | . . . . . . . 128 68 . . . 136 144 57 76 . 131 232 37 69 58 . Knockbacks 9 | . . . . 9 . . . . . . . . . . . . . . . . . . Impact . | . . . . . . . . . . . . . . . . . . . . . . . Kinetic 6 | . . . . 6 . . . . . . . . . . . . . . . . . . Secondary 3 | . . . . 3 . . . . . . . . . . . . . . . . . . Self-Inflicted Damage 265 | 4 . 49 . . . 52 . 46 . . . . . . . . . . . . . 114 Shots 4 | . . 1 . . . 1 . 1 . . . . . . . . . . . . . 1 Rammed 1 | 1 . . . . . . . . . . . . . . . . . . . . . . Targets Rammed 1 | 1 . . . . . . . . . . . . . . . . . . . . . . Kicked . | . . . . . . . . . . . . . . . . . . . . . . . Crushed . | . . . . . . . . . . . . . . . . . . . . . . . Highest Temperature 302 | . 77 220 279 267 87 25 112 298 302 262 60 92 . . . 82 16 . 81 144 . . Average Temperature 59 | . 22 21 81 34 27 8 32 84 90 92 19 25 . . . 29 10 . 28 83 . . Received Heat Transfer 1479 | . 393 264 84 378 . 48 45 . . 87 . 9 . . . 18 . . . 135 9 9 Effects 2 | . . . . . . . . 2 . . . . . . . . . . . . . . Energy Bleed 1 | . . . . . . . . 1 . . . . . . . . . . . . . . Interference 1 | . . . . . . . . 1 . . . . . . . . . . . . . . Siege Activations . | . . . . . . . . . . . . . . . . . . . . . . . Martial Activations . | . . . . . . . . . . . . . . . . . . . . . . . Shielding Activations . | . . . . . . . . . . . . . . . . . . . . . . . Robots Disrupted . | . . . . . . . . . . . . . . . . . . . . . . . Combat Hostiles . | . . . . . . . . . . . . . . . . . . . . . . . Robots Corrupted . | . . . . . . . . . . . . . . . . . . . . . . . Combat Hostiles . | . . . . . . . . . . . . . . . . . . . . . . . Parts Fried 2 | . . . . . . . . . . . . 1 1 . . . . . . . . . Impact Corruptions 10 | . . . . . . . . . . . . 3 7 . . . . . . . . . Robots Melted . | . . . . . . . . . . . . . . . . . . . . . . . Combat Hostiles . | . . . . . . . . . . . . . . . . . . . . . . . Parts Melted . | . . . . . . . . . . . . . . . . . . . . . . . Heat Transferred 74 | . . . . . . . . . 37 . . . . . . . . . . 37 . . Parts Sabotaged 5 | . . . . . . . . . . 5 . . . . . . . . . . . . Parts Stolen . | . . . . . . . . . . . . . . . . . . . . . . . Parts Stripped . | . . . . . . . . . . . . . . . . . . . . . . . Power Chain Reactions . | . . . . . . . . . . . . . . . . . . . . . . . Alert | -11 -10 -9 -9 -8 -7 -6 -5 -5 -5 -5 -4 -4 -4 -4 -4 -3 -3 -3 -2 -2 -2 -1 ------- Run | Yrd Mat Mat Min Mat Fac Fac Fac Upp Upp War Pro Fac Upp Upp Zhi Pro Res Qua Res Tes Frg Acc Maximum Alert Level 1 | . . 1 . 1 . . . . . . . . . . . . . . . 1 1 . Low Security (%) 91 | 100 100 93 100 62 100 100 100 . . . . 100 . . . . 100 100 100 78 . 100 Level 1 8 | . . 6 . 37 . . . . . . . . . . . . . . . 21 100 . Level 2 . | . . . . . . . . . . . . . . . . . . . . . . . Level 3 . | . . . . . . . . . . . . . . . . . . . . . . . Level 4 . | . . . . . . . . . . . . . . . . . . . . . . . Level 5 . | . . . . . . . . . . . . . . . . . . . . . . . High Security . | . . . . . . . . . . . . . . . . . . . . . . . Max Security . | . . . . . . . . . . . . . . . . . . . . . . . Peak Influence 393 | 10 123 266 166 318 123 93 50 . . . . 21 . . . . 51 42 29 393 239 189 Initial 215 | . . . 96 9 123 30 30 . . . . . . . . . . 10 4 . 215 136 Average 61 | 2 50 71 62 146 72 32 8 . . . . 2 . . . . 12 12 3 96 222 125 Influence Increases 4313 | 20 380 629 160 759 59 221 188 130 90 . . 157 . 5 . 20 185 166 176 546 64 358 Destroy 0b10 Robot/C 1600 | . 240 420 140 480 . . . 100 80 . . . . . . . . . . 140 . . Destroy 0b10 Robot/NC 350 | 20 20 55 . 50 5 5 35 5 . . . 10 . 5 . 5 10 35 40 35 10 5 Destroy Leader 378 | . 62 98 10 134 . 2 4 10 10 . . 2 . . . . 2 . 10 32 . 2 Allied During Kill 28 | . . . 10 18 . . . . . . . . . . . . . . . . . . Successful Hack 269 | . 28 5 . 38 16 11 48 . . . . 6 . . . . 45 27 6 30 9 . Disable Machine 285 | . . . . . . . 30 . . . . . . . . . 15 75 . 105 45 15 Destroy Structure 578 | . . 36 . 9 8 38 56 . . . . 94 . . . . 38 14 90 144 . 51 Partial Spotted 75 | . . . . . . 15 . . . . . 30 . . . . 30 . . . . . Lose Combat Pursuer 750 | . 30 15 . 30 30 150 15 15 . . . 15 . . . 15 45 15 30 60 . 285 Influence Decreases 4171 | 20 380 381 382 513 269 220 251 130 90 . . 151 6 5 . 20 166 176 185 163 218 445 Entered New Map 661 | . . . 152 17 149 32 33 . . . . . 3 . . . . 9 5 . 168 93 Time Decay 3056 | 20 360 346 220 455 120 128 156 130 90 . . 141 3 5 . 20 130 167 180 113 50 222 Lost Part 315 | . 20 35 10 . . 50 10 . . . . 10 . . . . . . . 50 . 130 Lost Ally 53 | . . . . 41 . 10 2 . . . . . . . . . . . . . . . Purge Threat 86 | . . . . . . . 50 . . . . . . . . . 36 . . . . . Squads Dispatched 34 | . 2 2 . 4 1 3 3 . . . . 3 . . . . 1 3 1 7 . 4 Investigation 4 | . . . . . 1 1 . . . . . . . . . . . 1 1 . . . Extermination 10 | . . . . . . 1 1 . . . . 2 . . . . 1 1 . 2 . 2 Reinforcement 19 | . 2 2 . 3 . 1 2 . . . . 1 . . . . . 1 . 5 . 2 Assault . | . . . . . . . . . . . . . . . . . . . . . . . Garrison 1 | . . . . 1 . . . . . . . . . . . . . . . . . . Intercept . | . . . . . . . . . . . . . . . . . . . . . . . Searches Triggered . | . . . . . . . . . . . . . . . . . . . . . . . Construction Impeded 3 | . . 1 . 1 . . . . . . . . . . . . . . . 1 . . Haulers Reinforced 1 | . . . . . . . . . . . . 1 . . . . . . . . . . Active Scanning Responses . | . . . . . . . . . . . . . . . . . . . . . . . Cargo Convoy Interrupts . | . . . . . . . . . . . . . . . . . . . . . . . Stealth | -11 -10 -9 -9 -8 -7 -6 -5 -5 -5 -5 -4 -4 -4 -4 -4 -3 -3 -3 -2 -2 -2 -1 --------- Run | Yrd Mat Mat Min Mat Fac Fac Fac Upp Upp War Pro Fac Upp Upp Zhi Pro Res Qua Res Tes Frg Acc Distress Signals 22 | . 3 5 . 3 . . . . . . . 1 . . . . . . 7 3 . . Communications Jammed 3 | . . . . . . . . . . . . . . . . . . . 1 2 . . Distress Signals 2 | . . . . . . . . . . . . . . . . . . . . 2 . . Times Spotted 288 | . 29 38 11 43 2 16 11 6 1 14 . 10 . . . 1 6 7 10 25 12 46 Peak Tracking Total 21 | . 5 5 4 5 2 8 4 5 1 13 . 5 . . . 1 4 3 2 13 15 21 Tactical Retreats 28 | . 2 1 . 2 1 3 1 1 . . . 2 . . . 1 2 1 2 2 . 7 Traps | -11 -10 -9 -9 -8 -7 -6 -5 -5 -5 -5 -4 -4 -4 -4 -4 -3 -3 -3 -2 -2 -2 -1 ------- Run | Yrd Mat Mat Min Mat Fac Fac Fac Upp Upp War Pro Fac Upp Upp Zhi Pro Res Qua Res Tes Frg Acc Traps Triggered 8 | . . . . 2 . 1 . . . . . 1 . . . . 1 1 . 1 1 . Indirectly . | . . . . . . . . . . . . . . . . . . . . . . . Trap Hack Attempts . | . . . . . . . . . . . . . . . . . . . . . . . Triggered . | . . . . . . . . . . . . . . . . . . . . . . . Disarmed . | . . . . . . . . . . . . . . . . . . . . . . . Reprogrammed . | . . . . . . . . . . . . . . . . . . . . . . . Reused . | . . . . . . . . . . . . . . . . . . . . . . . Traps Extracted . | . . . . . . . . . . . . . . . . . . . . . . . Installed . | . . . . . . . . . . . . . . . . . . . . . . . Triggered . | . . . . . . . . . . . . . . . . . . . . . . . Machines | -11 -10 -9 -9 -8 -7 -6 -5 -5 -5 -5 -4 -4 -4 -4 -4 -3 -3 -3 -2 -2 -2 -1 ---------- Run | Yrd Mat Mat Min Mat Fac Fac Fac Upp Upp War Pro Fac Upp Upp Zhi Pro Res Qua Res Tes Frg Acc Machines Disabled 22 | . . . . . . . 2 . . 1 . . . . . 1 1 5 . 8 3 1 Max in Single Turn 4 | . . . . . . . 1 . . 1 . . . . . 1 1 1 . 4 1 1 Garrison Access 4 | . . . . . 1 . 1 . . . . . . . . . . . 2 . . . Energy Cycler 1 | . . . . . . . . . . . . . . . . . . . . . . 1 Machines Repaired . | . . . . . . . . . . . . . . . . . . . . . . . Machines Dismantled 1 | . . . . . . . . . . 1 . . . . . . . . . . . . Machines Sabotaged . | . . . . . . . . . . . . . . . . . . . . . . . Overloaded Fab Kills . | . . . . . . . . . . . . . . . . . . . . . . . Hacking | -11 -10 -9 -9 -8 -7 -6 -5 -5 -5 -5 -4 -4 -4 -4 -4 -3 -3 -3 -2 -2 -2 -1 --------- Run | Yrd Mat Mat Min Mat Fac Fac Fac Upp Upp War Pro Fac Upp Upp Zhi Pro Res Qua Res Tes Frg Acc Machines Accessed 78 | . 4 2 . 4 4 4 8 . 1 7 . 9 1 1 5 1 7 10 4 5 1 . Terminals 50 | . 4 2 . 4 2 4 6 . . . . 8 . . . . 5 8 2 4 1 . Fabricators 1 | . . . . . 1 . . . . . . . . . . . . . . . . . Repair Stations 4 | . . . . . . . 1 . . . . 1 . . . . 1 1 . . . . Recycling Units . | . . . . . . . . . . . . . . . . . . . . . . . Scanalyzers 3 | . . . . . . . . . . . . . . . . . 1 1 . 1 . . Garrison Access 4 | . . . . . 1 . 1 . . . . . . . . . . . 2 . . . Total Hacks 227 | . 11 4 . 15 7 11 17 . 1 13 . 38 1 1 18 1 24 30 15 18 2 . Successful 144 | . 5 2 . 8 4 7 12 . 1 13 . 19 1 1 18 1 16 17 10 8 1 . Failed 83 | . 6 2 . 7 3 4 5 . . . . 19 . . . . 8 13 5 10 1 . Catastrophic 18 | . 1 . . 3 1 1 . . . . . 5 . . . . 3 3 . 1 . . Database Lockouts . | . . . . . . . . . . . . . . . . . . . . . . . Manual 103 | . 8 2 . 14 . 7 7 . . . . 23 . . . . 10 13 7 10 2 . Terminals 165 | . 11 4 . 15 4 11 14 . . . . 32 . . . . 17 26 13 16 2 . Fabricators 2 | . . . . . 2 . . . . . . . . . . . . . . . . . Repair Stations 14 | . . . . . . . 2 . . . . 6 . . . . 3 3 . . . . Recycling Units . | . . . . . . . . . . . . . . . . . . . . . . . Scanalyzers 7 | . . . . . . . . . . . . . . . . . 4 1 . 2 . . Garrison Access 4 | . . . . . 1 . 1 . . . . . . . . . . . 2 . . . Terminal Hacks 106 | . 4 1 . 6 1 5 8 . 1 13 . 13 1 1 18 1 7 12 8 5 1 . Record 13 | . . . . . . . . . 1 4 . . . . 6 1 . 1 . . . . Part Schematic 11 | . 1 . . 4 1 1 . . . . . . . . 4 . . . . . . . Robot Analysis 4 | . . . . . . . . . . . . . . . 4 . . . . . . . Prototype ID Bank 12 | . 1 . . . . . . . . 7 . . . . 4 . . . . . . . Open Door 4 | . . . . . . . . . . 2 . . 1 1 . . . . . . . . Level Access Points 6 | . . . . . . 1 1 . . . . 1 . . . . . 1 1 . 1 . Branch Access Points 6 | . . . . . . 1 1 . . . . 1 . . . . 1 . 1 1 . . Terminal Index 5 | . . . . . . 1 1 . . . . . . . . . 1 . 1 1 . . Fabricator Index 1 | . . . . . . . 1 . . . . . . . . . . . . . . . Repair Station Index 1 | . . . . . . . . . . . . . . . . . 1 . . . . . Alert Level 2 | . . . . 1 . . . . . . . 1 . . . . . . . . . . Unreport Threat 2 | . . . . . . . 1 . . . . . . . . . 1 . . . . . Locate Traps 10 | . 1 . . . . . 1 . . . . 2 . . . . 1 4 1 . . . Transport Status 2 | . . . . . . . . . . . . 2 . . . . . . . . . . Recall Extermination 6 | . . . . . . 1 1 . . . . 2 . . . . 1 1 . . . . Recall Reinforcements 1 | . . . . . . . . . . . . . . . . . . 1 . . . . Hauler Manifests 4 | . . 1 . 1 . . . . . . . 1 . . . . . . 1 . . . Registered Components 4 | . . . . . . . 1 . . . . . . . . . . 1 1 1 . . Registered Prototypes 1 | . . . . . . . . . . . . . . . . . . . 1 . . . Zone Layout 11 | . 1 . . . . . . . . . . 3 . . . . 1 3 1 2 . . Fabricator Hacks 2 | . . . . . 2 . . . . . . . . . . . . . . . . . Load Schematic 1 | . . . . . 1 . . . . . . . . . . . . . . . . . Build 1 | . . . . . 1 . . . . . . . . . . . . . . . . . Repair Station Hacks 12 | . . . . . . . 2 . . . . 5 . . . . 2 3 . . . . Scan Component 5 | . . . . . . . 1 . . . . 2 . . . . 1 1 . . . . Repair 5 | . . . . . . . 1 . . . . 2 . . . . 1 1 . . . . Refit 2 | . . . . . . . . . . . . 1 . . . . . 1 . . . . Recycling Unit Hacks . | . . . . . . . . . . . . . . . . . . . . . . . Scanalyzer 6 | . . . . . . . . . . . . . . . . . 4 1 . 1 . . Insert Component 6 | . . . . . . . . . . . . . . . . . 4 1 . 1 . . Garrison Access Hacks 4 | . . . . . 1 . 1 . . . . . . . . . . . 2 . . . Seal Access 4 | . . . . . 1 . 1 . . . . . . . . . . . 2 . . . Unauthorized Hacks 14 | . 1 1 . 2 . 2 1 . . . . 1 . . . . 3 1 . 2 . . Terminals 14 | . 1 1 . 2 . 2 1 . . . . 1 . . . . 3 1 . 2 . . Track 2 | . . . . . . . . . . . . . . . . . 1 1 . . . . Assimilate 5 | . . 1 . . . 1 1 . . . . 1 . . . . . . . 1 . . Botnet 4 | . . . . 1 . 1 . . . . . . . . . . 2 . . . . . Operators 3 | . 1 . . 1 . . . . . . . . . . . . . . . 1 . . Fabricators . | . . . . . . . . . . . . . . . . . . . . . . . Repair Stations . | . . . . . . . . . . . . . . . . . . . . . . . Recycling Units . | . . . . . . . . . . . . . . . . . . . . . . . Scanalyzers . | . . . . . . . . . . . . . . . . . . . . . . . Garrison Access . | . . . . . . . . . . . . . . . . . . . . . . . Data Cores Recovered 1 | . . . . . . . 1 . . . . . . . . . . . . . . . Used 1 | . . . . . . . 1 . . . . . . . . . . . . . . . Hacking Detections 46 | . 4 2 . 3 3 3 7 . . . . 5 . . . . 6 6 2 4 1 . Full Trace Events 3 | . . . . . 1 1 . . . . . . . . . . . . 1 . . . Feedback Events . | . . . . . . . . . . . . . . . . . . . . . . . Feedback Blocked . | . . . . . . . . . . . . . . . . . . . . . . . Robot Schematics Acquired . | . . . . . . . . . . . . . . . . . . . . . . . Robots Built . | . . . . . . . . . . . . . . . . . . . . . . . Authchips . | . . . . . . . . . . . . . . . . . . . . . . . Time . | . . . . . . . . . . . . . . . . . . . . . . . Total Robot Build Rating . | . . . . . . . . . . . . . . . . . . . . . . . Part Schematics Acquired 11 | . 1 . . 4 1 1 . . . . . . . . 4 . . . . . . . Parts Built 1 | . . . . . 1 . . . . . . . . . . . . . . . . . Authchips . | . . . . . . . . . . . . . . . . . . . . . . . Time 73 | . . . . . 73 . . . . . . . . . . . . . . . . . Total Part Build Rating 3 | . . . . . 3 . . . . . . . . . . . . . . . . . Parts Repaired 5 | . . . . . . . 1 . . . . 2 . . . . 1 1 . . . . Time 181 | . . . . . . . 19 . . . . 100 . . . . 31 31 . . . . Parts Recycled . | . . . . . . . . . . . . . . . . . . . . . . . Recycled Matter . | . . . . . . . . . . . . . . . . . . . . . . . Retrieved Matter . | . . . . . . . . . . . . . . . . . . . . . . . Retrieved Components . | . . . . . . . . . . . . . . . . . . . . . . . Parts Scanalyzed 1 | . . . . . . . . . . . . . . . . . . . . 1 . . Part Schematics Acquired . | . . . . . . . . . . . . . . . . . . . . . . . Parts Damaged 1 | . . . . . . . . . . . . . . . . . . . . 1 . . Bothacking | -11 -10 -9 -9 -8 -7 -6 -5 -5 -5 -5 -4 -4 -4 -4 -4 -3 -3 -3 -2 -2 -2 -1 ------------ Run | Yrd Mat Mat Min Mat Fac Fac Fac Upp Upp War Pro Fac Upp Upp Zhi Pro Res Qua Res Tes Frg Acc Used RIF Installer . | . . . . . . . . . . . . . . . . . . . . . . . Robots Hacked 1 | . . . . . . . . . . . . . . . . . . . . . . 1 Non-combat 1 | . . . . . . . . . . . . . . . . . . . . . . 1 Combat . | . . . . . . . . . . . . . . . . . . . . . . . Robot Hacks Applied 1 | . . . . . . . . . . . . . . . . . . . . . . 1 find_fabricator 1 | . . . . . . . . . . . . . . . . . . . . . . 1 Relay Couplers Released . | . . . . . . . . . . . . . . . . . . . . . . . Fabnet Peak Effective % . | . . . . . . . . . . . . . . . . . . . . . . . Robots Rewired . | . . . . . . . . . . . . . . . . . . . . . . . Allies Hacked 1 | . . . . . . . . . . . . 1 . . . . . . . . . . Hacks Repelled . | . . . . . . . . . . . . . . . . . . . . . . . Allies | -11 -10 -9 -9 -8 -7 -6 -5 -5 -5 -5 -4 -4 -4 -4 -4 -3 -3 -3 -2 -2 -2 -1 -------- Run | Yrd Mat Mat Min Mat Fac Fac Fac Upp Upp War Pro Fac Upp Upp Zhi Pro Res Qua Res Tes Frg Acc Total Allies 8 | . . . 4 . . 1 1 . . . . 1 . . . . . . . 1 . . Largest Group 4 | . . . 4 3 . 1 1 . . . . 1 . . . . . . . 1 . . Highest-Rated Group 71 | . . . 71 40 . 10 26 . . . . 10 . . . . . . . 45 . . Highest-Rated Ally 45 | . . . 31 16 . 10 26 . . . . 10 . . . . . . . 45 . . Total Orders 2 | . . . . . . . 2 . . . . . . . . . . . . . . . STAY 1 | . . . . . . . 1 . . . . . . . . . . . . . . . FOLLOW 1 | . . . . . . . 1 . . . . . . . . . . . . . . . Ally Attacks 40 | . . . 11 29 . . . . . . . . . . . . . . . . . . Total Damage 483 | . . . 161 322 . . . . . . . . . . . . . . . . . . Kills 9 | . . . 2 7 . . . . . . . . . . . . . . . . . . Allies Corrupted . | . . . . . . . . . . . . . . . . . . . . . . . Allies Melted 1 | . . . . . . . . . . . . . . . . . . . 1 . . . Intel | -11 -10 -9 -9 -8 -7 -6 -5 -5 -5 -5 -4 -4 -4 -4 -4 -3 -3 -3 -2 -2 -2 -1 ------- Run | Yrd Mat Mat Min Mat Fac Fac Fac Upp Upp War Pro Fac Upp Upp Zhi Pro Res Qua Res Tes Frg Acc Active Infowar (turns) 9831 | . . 469 636 1464 163 262 436 580 394 477 319 723 463 200 175 541 551 403 928 228 40 379 Optics 19 | . . . . . . . . . . . . . . . . . . . . 19 . . Sensors 6974 | . . . . . 163 262 436 578 372 458 319 722 442 200 27 533 541 402 893 209 40 377 IFF 4 | . . . . . . . 4 . . . . . . . . . . . . . . . T.N.C. 3273 | . . 469 636 1464 . . . . . . . . . . . . . . 704 . . . Machine Analysis 147 | . . . . . . 145 . . . . . . . . . . . . . . . 2 Cloaking 2815 | . . . . . . . 2 415 394 477 . 264 463 200 175 361 5 19 40 . . . Jamming 1563 | . . . . . . . . . . . . . . . . . 389 42 923 209 . . ECM 60 | . . . . . . . . . . . . 8 . . . 9 7 17 2 17 . . Robot Analysis Total 4 | . . . . . . . . . . . . . . . 4 . . . . . . . Derelict Logs Recovered 8 | . . . . . . . . 2 2 . 1 . 1 2 . . . . . . . . Drone Launches . | . . . . . . . . . . . . . . . . . . . . . . . Drone Recoveries . | . . . . . . . . . . . . . . . . . . . . . . . Exploration | -11 -10 -9 -9 -8 -7 -6 -5 -5 -5 -5 -4 -4 -4 -4 -4 -3 -3 -3 -2 -2 -2 -1 ------------- Run | Yrd Mat Mat Min Mat Fac Fac Fac Upp Upp War Pro Fac Upp Upp Zhi Pro Res Qua Res Tes Frg Acc Turns Passed 12194 | 124 1209 1115 636 1464 244 262 467 580 394 484 319 738 463 200 177 541 559 403 928 310 116 461 Spaces Moved 16134 | 78 684 479 373 639 354 524 888 752 907 1159 626 1304 637 333 179 770 884 687 2157 500 222 998 Core 40 | 2 . . . . . . . . . . . . . . . . . . . 3 . 35 Treads 136 | . . 134 1 1 . . . . . . . . . . . . . . . . . . Legs . | . . . . . . . . . . . . . . . . . . . . . . . Wheels 2149 | 76 684 345 372 638 34 . . . . . . . . . . . . . . . . . Hover . | . . . . . . . . . . . . . . . . . . . . . . . Flight 13809 | . . . . . 320 524 888 752 907 1159 626 1304 637 333 179 770 884 687 2157 497 222 963 Fastest Speed 18 | 50 100 115 145 145 28 27 24 24 25 19 23 24 28 28 28 28 20 25 18 26 30 24 Average Speed 44 | 98 137 159 145 162 39 27 24 24 25 24 24 26 28 28 28 28 24 29 28 27 30 32 Slowest Speed 400 | 100 175 400 240 165 150 29 27 100 25 25 25 28 105 28 105 105 25 30 102 50 30 350 Overloaded Moves 84 | . . . . . . . . . . 17 . 18 . . . . 7 . 42 . . . Propulsion Burnouts . | . . . . . . . . . . . . . . . . . . . . . . . Robots Hopped 26 | . . . . . . 1 . 1 . . . 2 . . . . 4 3 3 2 4 6 Potential Cave-ins 5 | . . . . . . 5 . . . . . . . . . . . . . . . . Cave-ins Triggered 1 | . . . . . . 1 . . . . . . . . . . . . . . . . Teleports 1 | . . . . . . . . . . . . . . . . . . 1 . . . . Exploration Rate (%) 51 | 4 97 41 83 50 7 20 19 78 93 93 69 25 76 41 60 74 20 77 56 67 12 27 Regions Visited 22 Branch Regions 12 Pre-discovered Areas 5 | . . . . . . . . . 1 . . . 1 . 3 . . . . . . . Known Exits Taken 16 | . . . . . 1 1 1 1 1 1 1 1 1 1 1 1 1 1 1 . 1 . Unknown Exits Taken 6 | 1 1 1 1 1 . . . . . . . . . . . . . . . 1 . . Scrap Searched 15 | . . . 1 . . . . 2 3 . 3 . 3 2 . 1 . . . . . . Spaces Dug 332 | . . 17 . 6 8 49 28 59 23 2 5 47 9 1 . 17 18 7 26 7 . 3 Terrain Destroyed 508 | . . 35 . 6 8 57 28 96 31 4 5 47 12 1 . 37 19 7 31 63 . 21 Melee 244 | . . . . 6 8 33 20 32 10 2 5 47 8 1 . 14 17 7 24 7 . 3 Projectile 90 | . . . . . . . 1 43 8 2 . . 4 . . 23 2 . 7 . . . AOE 174 | . . 35 . . . 24 7 21 13 . . . . . . . . . . 56 . 18 Terrain Rammed . | . . . . . . . . . . . . . . . . . . . . . . . Walls Destroyed . | . . . . . . . . . . . . . . . . . . . . . . . Machines Disabled . | . . . . . . . . . . . . . . . . . . . . . . . Actions | -11 -10 -9 -9 -8 -7 -6 -5 -5 -5 -5 -4 -4 -4 -4 -4 -3 -3 -3 -2 -2 -2 -1 --------- Run | Yrd Mat Mat Min Mat Fac Fac Fac Upp Upp War Pro Fac Upp Upp Zhi Pro Res Qua Res Tes Frg Acc Total 20082 | 104 859 698 446 913 446 581 1071 1042 1047 1333 782 1641 905 430 306 1046 1198 866 2392 616 255 1105 Wait 2490 | . 64 72 41 126 56 1 101 190 113 125 147 219 243 79 101 226 252 109 95 56 9 65 Move 16062 | 77 683 478 372 638 353 521 887 749 906 1158 625 1299 636 332 178 769 875 680 2151 495 213 987 Hop 24 | . . . . . . 1 . 1 . . . 2 . . . . 4 3 2 2 4 5 Pick Up 177 | 10 25 16 5 10 3 7 11 1 3 7 1 10 1 2 7 . 15 11 13 5 . 14 Fast Attach 110 | 4 3 4 4 7 1 2 4 3 . 7 1 11 2 2 4 2 1 9 23 2 2 12 Attach 61 | 2 2 6 1 1 11 6 2 1 . 2 1 4 1 . 1 . 5 5 6 . 1 3 Detach 14 | . . . . . 1 . . 1 . 1 . 1 . . . . . 2 7 . . 1 Swap 148 | . 9 19 1 17 3 2 12 11 3 6 2 18 6 2 3 7 9 6 6 6 . . Drop 225 | . 15 24 9 24 9 2 11 5 2 14 . 21 3 4 10 1 11 18 34 5 . 3 Fire 346 | 10 58 79 13 81 . . 2 44 10 2 . . 3 . . 24 2 . 7 11 . . Melee 390 | . . . . 9 9 39 41 36 10 3 5 56 10 9 2 17 24 23 48 26 8 15 Ram 1 | 1 . . . . . . . . . . . . . . . . . . . . . . Kick . | . . . . . . . . . . . . . . . . . . . . . . . Crush . | . . . . . . . . . . . . . . . . . . . . . . . Escape Stasis 26 | . . . . . . . . . . . . . . . . . . . . 8 18 . Rewire . | . . . . . . . . . . . . . . . . . . . . . . . Trap . | . . . . . . . . . . . . . . . . . . . . . . . Miscellaneous 8 | . . . . . . . . . . 8 . . . . . . . . . . . . Route ------- -11/Scrapyard -10/Materials (discovered 4 exits: *Mat x3 / [*Sub]) -9/Materials (discovered 2 exits: *Mat / [*Min]) -9/Mines (discovered 2 exits: *Mat / [*Zio]) -8/Materials (discovered 2 exits: *Fac / [*Sto]) -7/Factory -6/Factory (discovered 6 exits: *Fac x4 / Low x2) -5/Factory (discovered 6 exits: *Fac x4 / *Upp x2) -5/Upper Caves -5/Upper Caves (discovered 2 exits: *Fac / *War) -5/Warlord -4/Proximity Caves -4/Factory (discovered 9 exits: *Res x4 / *Upp x2 / Ext x2 / Arm) -4/Upper Caves -4/Upper Caves -4/Zhirov -3/Proximity Caves -3/Research (discovered 2 exits: *Qua x2) -3/Quarantine -2/Research (discovered 5 exits: Acc x3 / *Tes x2) -2/Testing (discovered 2 exits: [*Sec] / *Frg) -2/Protoforge -1/Access History --------- Turn | Location | Event 6 | -11/Scrapyard | Discovered new exit (range 15) 125 | -11/Scrapyard | Entered Materials 213 | -10/Materials | Discovered new exit (range 8) 309 | -10/Materials | Build established: Mutant 568 | -10/Materials | Discovered new exit (range 15) 785 | -10/Materials | Discovered new exit (range 16) 1045 | -10/Materials | Discovered new exit (range 4) 1334 | -10/Materials | Entered another Materials area 1334 | -9/Materials | Evolved 2 slots: Propulsion x1, Utility x1 2095 | -9/Materials | Discovered new exit (range 13) 2414 | -9/Materials | Discovered new exit (range 16) 2449 | -9/Materials | Entered Mines 2450 | -9/Mines | Assembled infested the area 2516 | -9/Mines | Met 8R-AWN 2619 | -9/Mines | A Derelict revealed a hidden shortcut to a safe place 2757 | -9/Mines | Assisted by bots powering up and referring to "LRC-V3" 2780 | -9/Mines | Found a Scrap Suit stashed away for nefarious purposes 2792 | -9/Mines | Received a Mining Laser from a helpful Derelict 2825 | -9/Mines | Build established: Scavenger-Mutant 2873 | -9/Mines | Received a Rocket Launcher from a helpful Derelict 2932 | -9/Mines | A weapon hastily lodged in a ceiling crevice suddenly fell to the ground 2954 | -9/Mines | Discovered new exit (range 5) 3019 | -9/Mines | Joined a pair of Derelicts in attacking an 0b10 outpost 3085 | -9/Mines | Entered Materials 3085 | -8/Materials | Accompanied by 3 allies 3085 | -8/Materials | Evolved 2 slots: Propulsion x1, Utility x1 3462 | -8/Materials | Build established: Mutant 3941 | -8/Materials | Garrison activated, responded to threat 3989 | -8/Materials | Discovered new exit (range 13) 4503 | -8/Materials | Discovered new exit (range 16) 4549 | -8/Materials | Entered Factory 4549 | -7/Factory | Evolved 2 slots: Power x1, Propulsion x1 4708 | -7/Factory | Fabricated Hacking Suite? 4789 | -7/Factory | Discovered new exit (range 12) 4793 | -7/Factory | Identified exit to Factory 4793 | -7/Factory | Entered another Factory area 4793 | -6/Factory | Evolved 2 slots: Utility x2 4938 | -6/Factory | Crushed by falling debris 4938 | -6/Factory | System corruption reached 10% 4969 | -6/Factory | Lost 3 parts (1p1n1u) 5020 | -6/Factory | Identified exit to Lower Caves 5021 | -6/Factory | Identified exit to Factory 5055 | -6/Factory | Entered another Factory area 5055 | -5/Factory | Evolved 2 slots: Propulsion x1, Utility x1 5179 | -5/Factory | Identified exit to Factory 5317 | -5/Factory | Identified exit to Upper Caves 5367 | -5/Factory | Repaired Imp. Light Armor Plating? 5522 | -5/Factory | Entered Upper Caves 5541 | -5/Upper Caves | Learned Factory stockpile data 5721 | -5/Upper Caves | Learned Factory machine intel 5730 | -5/Upper Caves | Spotted B-75 Beast 5987 | -5/Upper Caves | Encountered a Warlord checkpoint 6097 | -5/Upper Caves | Discovered new exit (range 5) 6098 | -5/Upper Caves | Identified exit to Upper Caves 6102 | -5/Upper Caves | Entered another Upper Caves area 6149 | -5/Upper Caves | Discovered exit to Factory (range 8) 6424 | -5/Upper Caves | Learned Factory terminal intel 6427 | -5/Upper Caves | Entered a destroyed Warlord outpost 6455 | -5/Upper Caves | Discovered new exit (range 9) 6459 | -5/Upper Caves | Identified exit to Warlord 6496 | -5/Upper Caves | Entered Warlord 6693 | -5/Warlord | Found Prototype Hackware 6699 | -5/Warlord | Found Prototype Processor 6699 | -5/Warlord | Identified Exp. Targeting Computer 6724 | -5/Warlord | Warlord's base attacked by MAIN.C 6755 | -5/Warlord | Met Warlord 6787 | -5/Warlord | Found Prototype Energy Cannon 6787 | -5/Warlord | Identified Vortex Driver 6843 | -5/Warlord | Opened side exit 6954 | -5/Warlord | Warlord forces counterattacked 6972 | -5/Warlord | Discovered new exit (range 15) 6980 | -5/Warlord | Identified exit to Proximity Caves 6980 | -5/Warlord | Entered Proximity Caves 7210 | -4/Proximity Caves | Discovered exit to Factory (range 11) 7227 | -4/Proximity Caves | Learned Research emergency access door positions 7299 | -4/Proximity Caves | Entered Factory 7299 | -4/Factory | Evolved 2 slots: Utility x2 7300 | -4/Factory | Identified Ghost Barrier 7301 | -4/Factory | Loaded intel: 264 machine locations 7302 | -4/Factory | Loaded intel: 27 terminal locations 7368 | -4/Factory | Identified exit to Upper Caves 7368 | -4/Factory | Identified exit to Extension 7368 | -4/Factory | Identified exit to Armory 7395 | -4/Factory | Repaired Field Propulsion Drive 7441 | -4/Factory | Repaired Xenon Bombardment Thruster 7457 | -4/Factory | Identified exit to Research 7597 | -4/Factory | Build established: Wizard-Sprinter 8037 | -4/Factory | Entered Upper Caves 8072 | -4/Upper Caves | Encountered a Warlord checkpoint 8433 | -4/Upper Caves | Discovered new exit (range 8) 8482 | -4/Upper Caves | Identified exit to Upper Caves 8500 | -4/Upper Caves | Entered another Upper Caves area 8551 | -4/Upper Caves | Encountered a Warlord checkpoint 8551 | -4/Upper Caves | Learned Research emergency access door positions 8632 | -4/Upper Caves | Discovered new exit (range 13) 8633 | -4/Upper Caves | Found DCF Scrap (15 items) 8642 | -4/Upper Caves | Identified exit to Zhirov 8700 | -4/Upper Caves | Entered Zhirov 8700 | -4/Zhirov | Discovered new exit (range 3) 8706 | -4/Zhirov | Met Zhirov 8717 | -4/Zhirov | Found Alien Artifact 8717 | -4/Zhirov | Identified Integrated Dissipator 8717 | -4/Zhirov | Installed Integrated Dissipator, increased core heat dissipation (+20) 8724 | -4/Zhirov | Found Alien Artifact 8863 | -4/Zhirov | Learned location of Quarantine (-3) 8863 | -4/Zhirov | Learned location of Testing (-2) 8863 | -4/Zhirov | Learned location of Command (-1) 8866 | -4/Zhirov | Zhirov requested help retrieving the SGEMP Prototype 8874 | -4/Zhirov | Identified exit to Proximity Caves 8877 | -4/Zhirov | Entered Proximity Caves 9127 | -3/Proximity Caves | Found Alien Artifact 9127 | -3/Proximity Caves | Identified Dimensional Node Initializer 9127 | -3/Proximity Caves | Initialized slip node 9187 | -3/Proximity Caves | Spotted B-86 Titan 9397 | -3/Proximity Caves | Discovered exit to Research (range 14) 9418 | -3/Proximity Caves | Entered Research 9418 | -3/Research | Evolved 2 slots: Propulsion x1, Utility x1 9496 | -3/Research | Identified exit to Quarantine 9585 | -3/Research | Found Prototype Processor 9587 | -3/Research | Identified Exp. Signal Interpreter 9643 | -3/Research | Found Prototype Device 9650 | -3/Research | Identified Exp. Focal Shield 9714 | -3/Research | Repaired Lrn. Sensor Array? 9977 | -3/Research | Entered Quarantine 9981 | -3/Quarantine | Found Alien Reactor 9981 | -3/Quarantine | Identified Matter Drive 9993 | -3/Quarantine | Found Alien Artifact 9993 | -3/Quarantine | Identified Phase Armor 10085 | -3/Quarantine | Identified Transdimensional Reconstructor 10085 | -3/Quarantine | Warped through subspace 10127 | -3/Quarantine | Identified exit to Research 10251 | -3/Quarantine | Found Alien Artifact 10251 | -3/Quarantine | Identified Terrabomb 10251 | -3/Quarantine | Used Terrabomb 10283 | -3/Quarantine | Found Alien Artifact 10283 | -3/Quarantine | Identified Subatomic Replicator 10303 | -3/Quarantine | Repaired Imp. Cloaking Device 10326 | -3/Quarantine | Found Alien Artifact 10336 | -3/Quarantine | Identified Phase Redirector 10380 | -3/Quarantine | Entered Research 10380 | -2/Research | Warlord forces began assault on 0b10 10380 | -2/Research | Evolved 2 slots: Utility x2 10424 | -2/Research | Identified exit to Testing 10424 | -2/Research | Identified exit to Access 10470 | -2/Research | Spotted B-90 Cyclops 10490 | -2/Research | Research machine network offline 10691 | -2/Research | Borebot progress halted 10719 | -2/Research | Build established: Wizard-Ninja 10873 | -2/Research | Met up with Warlord 10927 | -2/Research | Borebot progress halted 10943 | -2/Research | Spotted Executioner 11036 | -2/Research | Found Prototype Processor 11036 | -2/Research | Identified Exp. Core Analyzer 11048 | -2/Research | Warlord destroyed during the assault 11167 | -2/Research | Found Prototype Launcher 11167 | -2/Research | Identified Ragnarok Missile Launcher 11293 | -2/Research | Spotted Striker 11308 | -2/Research | Entered Testing 11433 | -2/Testing | Build established: Wizard-Sprinter 11537 | -2/Testing | Lost 3 allies 11537 | -2/Testing | Scanned by Researcher 11557 | -2/Testing | Released all parts (16) 11587 | -2/Testing | Lost 5 parts (2p2n1w) 11593 | -2/Testing | Spotted Fortress 11615 | -2/Testing | Discovered new exit (range 6) 11615 | -2/Testing | Discovered new exit (range 6) 11618 | -2/Testing | Entered Protoforge 11623 | -2/Protoforge | Spotted Hotshot 11704 | -2/Protoforge | Superfortress began startup sequence 11723 | -2/Protoforge | Spotted B-90 Cyclops 11729 | -2/Protoforge | Core integrity fell below 50% 11734 | -2/Protoforge | Entered Access 11734 | -1/Access | Evolved 2 slots: Propulsion x1, Utility x1 12030 | -1/Access | Energy Cycler disabled 12182 | -1/Access | Released all parts (2) 12186 | -1/Access | Core integrity fell below 50% 12192 | -1/Access | Core integrity fell below 20% 12195 | -1/Access | Destroyed by H-88 Terminator with Heavy Machine Gun Last Messages --------------- 12172_ Acquired Impulse Thruster. 12177_ K-01 Serf knocked back. 12177_ Knocked back. 12177_ Impulse Thruster Array destroyed. 12177_ Impulse Thruster destroyed. 12177_ Knocked back. 12178_ Cld. Q-thruster severed. 12178_ System Shield severed. 12181_ Adv. Hacking Suite severed. 12182_ Released Adv. Signal Interpreter. 12182_ Released Lrg. Storage Unit. 12185_ K-01 Serf destroyed. 12187_ Penetrated by Slug. 12189_ U-05 Engineer lays Concrete. 12191_ S-43 Plague destroyed. 12192_ Machine Analyzer severed. 12193_ C-57 Dissector destroyed. 12194_ Penetrated by Slug. 12195_ Slug penetrates Wall. 12195_ Penetrated by Slug. Map ----- +----------------------------------------------------+ | " ####????????????????????????? | | """ ??????????????????????? | | """ #?????????????????????? | | " ??????????????????????? | | ?????????????????????? | | ?????????????????????? | | ??????????????????????? | | ??????????????????????? | | #################???????????????????????? | | ##########???????????????????????????????????????? | | """T"""??????????????????????????????????????????? | | """?"""??????????????????????????????????????????? | | ?????????????????????????????????????????????????? | | ?????????????????????????????????????????????????? | | ??????????????????????????????#??????????????????? | | ????????????????????????????? #??????????????????? | | ????????????????????????????? #??????????????????? | | ???????????????????????######g##?????????????????? | | ???????????????????????# g ?????????????????? | | ???????????????????????# h ??????????????????? | | ???????????????????????# hh #????????????????? | | ???????????????????????# g ?????????????????? | | ????###########????????# " #????????????????? | | ????# ########## """ #????????????????? | | ????# + """ #????????????????? | | ""??# # @ " #????????????????? | | ""??# " # #????????????????? | | ""??+ "T + #????????????????? | | ""??# %! # " #????????????????? | | ""??+ = # """ #????????????????? | | ""??# !%==% # """ #????????????????? | | ????# * ######## # " #????????????????? | | ????### ##########+# ]#????????????????? | | ?????## "" # #??"""""?????????? | | +##### # "" # #??"""T""????????? | | """" # #??????""????????? | | """" ?##########????????????????? | | """" ????????????????????????????? | | ! """" ????????????????????????????? | | # =!! """" ?????????????????????????????? | | # !!!# "" ??????????????????????????? | | # !]=# ???????????????????????????? | | ## !# = ! #?????????????????????????? | | ## # #?????????????????????????? | | # #?????????????????????????? | | = ###+########?????????????????????????? | | !! ### ##???????????????????????????????? | | ! #???????????????????????????????? | | #???????????????????????????????? | | #???????????????????????????????? | +----------------------------------------------------+ Best States ------------- Heat Dissipation 72 Energy Generation 35 Energy Capacity 500 Matter Stores 300 Matter Capacity 300 Sight Range 23 Robot Scan Range 18 Terrain Scan Density 10 ECM Strength 2 Jamming Range 14 Cloak Strength 3 Base Temperature (-) 200 Armor Coverage 600 Resistance: KI 20 Propulsion Shielding 33 Utility Shielding 90 Evasion (%) 66 Targeting Accuracy 12 Recoil Reduction 3 Offensive Hacking 38 Defensive Hacking 34 Authchip Count 1 Item Schematics ----------------- Sml. Storage Unit | -10/Materials | Hacked Imp. Flight Unit | -8/Materials | Hacked Hacking Suite | -8/Materials | Hacked Med. Storage Unit | -8/Materials | Hacked Lgt. Nuclear Core | -8/Materials | Hacked Smartbomb Launcher | -7/Factory | Hacked Imp. Signal Interpreter | -6/Factory | Hacked Assault Drone Bay | -4/Zhirov | Free Exp. Heat Sink | -4/Zhirov | Free Exp. Optical Array | -4/Zhirov | Free Imp. Arc Thrower | -4/Zhirov | Free Robot Schematics ------------------ None Fabricated ------------ Hacking Suite | x1 | -7/Factory Repaired ---------- Imp. Light Armor Plating | 3% | -5/Factory Field Propulsion Drive | 6% | -4/Factory Xenon Bombardment Thruster | 33% | -4/Factory Lrn. Sensor Array | 7% | -3/Research Imp. Cloaking Device | 8% | -3/Quarantine Alien Tech Used ----------------- Integrated Dissipator Dimensional Node Initializer Matter Drive Phase Armor Transdimensional Reconstructor Terrabomb Subatomic Replicator Achievements -------------- None Challenges ------------ None Game ------ Seed SuperchargedChargeShifter Manual? 0 Play Time 04:40:43 Cumulative 598.5 hours Start 2025.07.17 @ 13:27:32 End 2025.07.17 @ 18:45:33 Sessions 1 Manual Loads 0 Difficulty Rogue Special Mode None Game No. 285 Rogue 278 Adventurer 7 Explorer 0 Win Type - Total 22 Types 13/0/4/5/0/0/0/0/0/0 Lore% 61 Gallery% 74 Achievement% 74 Wizard Run 0 Options --------- Layout 0 ASCII 0 Keyboard 1 Movement Numpad Keybinds 0 Fullscreen 2 Font 36/Terminus++ Map View 76x50 Zoom Use 0% Tactical HUD 1 Map Filters NONE Filters LOW_CONTRAST(13,24,33) Steam 1 RUN: de2c298d-7768-4689-96ea-8d311779f3f5